fUST/lending_fUST_20240314
["ID","MTS","AMOUNT","RATE_DAILY","PERIOD"]
[318850934,1710427836210,-919.41,0.00020637,2]
[318850935,1710427836221,-919.41,0.00020637,2]
[318850936,1710427836230,-919.41,0.00020637,2]
[318850937,1710427836240,-919.4946338,0.00020637,2]
[318850938,1710427836250,-8154.19759337,0.00020637,2]
[318850939,1710427836260,-454.19517279,0.00020637,2]
[318850940,1710427836271,-155.24839744,0.00020637,2]
[318850941,1710427836281,-3498.35525019,0.00020637,2]
[318850942,1710427836291,-457.61273012,0.00020637,2]
[318850943,1710427836301,-186.70359282,0.00020637,2]
[318850944,1710427836311,-284.80876135,0.00020637,2]
[318850945,1710427836321,-208.81631089,0.00020637,2]
[318850946,1710427836331,-331.25647707,0.00020637,2]
[318850947,1710427836341,-628.18801579,0.00020637,2]
[318850948,1710427836350,-599.88207269,0.00020637,2]
[318850949,1710427836360,-418.30441422,0.00020637,2]
[318850950,1710427836374,-561.755799,0.00020637,2]
[318850951,1710427836383,-156.10444941,0.00020637,2]
[318850952,1710427836394,-155.28296541,0.00020637,2]
[318850953,1710427836403,-159.98253449,0.00020637,2]
[318850954,1710427836413,-539.302723,0.00020637,2]
[318850955,1710427836422,-300.92699564,0.00020637,2]
[318850956,1710427836432,-633.96662213,0.00020637,2]
[318850957,1710427836441,-155.18933098,0.00020637,2]
[318850958,1710427836451,-835.10801205,0.00020637,2]
[318850959,1710427836461,-604.05040755,0.00020637,2]
[318850960,1710427836470,-228.7010688,0.00020637,2]
[318850961,1710427836479,-327.27322283,0.00020637,2]
[318850962,1710427836494,-500.0,0.00020638,2]
[318850963,1710427836503,-500.0,0.00020638,2]
[318850964,1710427836513,-500.0,0.00020638,2]
[318850965,1710427836521,-500.0,0.00020638,2]
[318850966,1710427836534,-500.0,0.00020638,2]
[318850967,1710427836546,-601.64,0.00020638,2]
[318850968,1710427836556,-246.96,0.00020638,2]
[318850969,1710427836566,-220.74648863,0.0002064,2]
[318850970,1710427836576,-220.74648863,0.00020648,2]
[318850971,1710427836585,-220.74648863,0.00020656,2]
[318850972,1710427836594,-220.74648863,0.00020664,2]
[318850973,1710427836603,-500.0,0.00020669,2]
[318850974,1710427836613,-500.0,0.00020669,2]
[318850975,1710427836626,-500.0,0.00020669,2]
[318850976,1710427836637,-500.0,0.00020669,2]
[318850977,1710427836646,-500.0,0.00020669,2]
[318850978,1710427836656,-500.0,0.00020669,2]
[318850979,1710427836666,-500.0,0.00020669,2]
[318850980,1710427836675,-553.99183075,0.00020669,2]
[318850981,1710427836685,-500.0,0.00020669,2]
[318850982,1710427836694,-500.0,0.00020669,2]
[318850983,1710427836704,-500.0,0.00020669,2]
[318850984,1710427836714,-500.0,0.00020669,2]
[318850985,1710427836724,-589.46,0.00020669,2]
[318850986,1710427836738,-502.50503039,0.00020669,2]
[318850987,1710427836750,-500.0,0.00020669,2]
[318850988,1710427836762,-500.0,0.00020669,2]
[318850989,1710427836774,-494.91909945,0.00020669,2]
[318850990,1710427836787,-361.15332449,0.00020669,2]
[318850991,1710427836800,-500.0,0.00020669,2]
[318850992,1710427836812,-500.0,0.00020669,2]
[318850993,1710427836823,-500.0,0.00020669,2]
[318850994,1710427836834,-500.0,0.00020669,2]
[318850995,1710427836844,-500.0,0.00020669,2]
[318850996,1710427836855,-500.0,0.00020669,2]
[318850997,1710427836866,-500.0,0.00020669,2]
[318850998,1710427836880,-500.0,0.00020669,2]
[318850999,1710427836892,-500.0,0.00020669,2]
[318851000,1710427836904,-500.0,0.00020669,2]
[318851001,1710427836916,-500.0,0.00020669,2]
[318851002,1710427836928,-339.40541378,0.00020669,2]
[318851003,1710427836940,-189533.15017055,0.0002067,10]
[318851004,1710427836956,-825.4181885,0.0002067,10]
[318851005,1710427836970,-3648.5074231,0.0002067,10]
[318851053,1710427838611,-7941.37575846,0.0002067,10]
[318851055,1710427838631,-1046.10127469,0.0002067,10]
[318851057,1710427838648,-14549.99999946,0.0002067,10]
[318851059,1710427838662,-810.98493516,0.0002067,10]
[318851062,1710427838677,-3621.38392236,0.0002067,10]
[318851117,1710427841649,-464.78866184,0.0002067,10]
[318851118,1710427841662,-367.733038,0.0002067,10]
[318851119,1710427841675,-6832.07930598,0.0002067,10]
[318851122,1710427841691,-293.35560962,0.0002067,10]
[318851124,1710427841704,-404.01179138,0.0002067,10]
[318851127,1710427841717,-4202.00559786,0.0002067,10]
[318851131,1710427841731,-6615.89310295,0.0002067,10]
[318851133,1710427841745,-60000.180732,0.0002067,10]
[318851135,1710427841758,-1090.35511393,0.0002067,10]
[318851188,1710427843200,-396.85223137,0.0002067,10]
[318851189,1710427843272,-6230.0,0.0002067,10]
[318851190,1710427843285,-23433.58975204,0.0002067,10]
[318851191,1710427843298,-87926.01548373,0.0002067,10]
[318851192,1710427843312,-102264.48724816,0.0002067,10]
[318851193,1710427843325,-28974.09086933,0.0002067,10]
[318851230,1710427846510,-153.0,0.000202,2]
[318851231,1710427846520,-201.1026188,0.000202,2]
[318851232,1710427846531,-153.0,0.000202,2]
[318851234,1710427846540,-439524.16165056,0.0002067,10]
[318851236,1710427846550,-220.74648863,0.00020672,2]
[318851238,1710427846560,-201.1026188,0.000207,2]
[318851240,1710427846571,-201.1026188,0.000207,2]
[318851242,1710427846582,-201.1026188,0.000207,2]
[318851243,1710427846592,-201.1026188,0.000207,2]
[318851245,1710427846603,-201.1026188,0.000207,2]
[318851246,1710427846614,-201.1026188,0.000207,2]
[318851247,1710427846624,-201.1026188,0.000207,2]
[318851248,1710427846638,-201.1026188,0.000207,2]
[318851250,1710427846649,-275.0044043,0.000207,2]
[318851252,1710427846659,-153.0,0.000207,2]
[318851254,1710427846670,-306.0,0.000207,2]
[318851255,1710427846681,-200.8367624,0.000207,2]
[318851256,1710427846692,-153.0,0.000207,2]
[318851257,1710427846702,-153.0,0.000207,2]
[318851258,1710427846712,-153.0,0.000207,2]
[318851259,1710427846723,-153.0,0.000207,2]
[318851260,1710427846733,-153.0,0.000207,2]
[318851261,1710427846744,-306.0,0.000207,2]
[318851262,1710427846754,-201.0608458,0.000207,2]
[318851263,1710427846764,-200.0,0.00020737,2]
[318851264,1710427846774,-1869.01380587,0.00020771,2]
[318851265,1710427846785,-239.04301717,0.00020771,2]
[318851266,1710427846795,-429631.327886,0.00020772,60]
[318851267,1710427846904,-322.54875705,0.00020772,60]
[318851268,1710427847506,-31745.33253345,0.00020772,60]
[318851269,1710427847521,-30288.51198102,0.00020772,60]
[318851291,1710428002178,166.666666,0.00019178,2]
[318851314,1710428126808,24900.0,0.0001906,2]
[318851334,1710428338403,854.4335849,0.00019063,2]
[318851353,1710428498446,1696.088666,0.00019066,2]
[318851357,1710428523153,166.666666,0.00019178,2]
[318851361,1710428574059,1845.61451402,0.00019522,2]
[318851424,1710428845030,1019.65324544,0.00015,14]
[318851426,1710428874324,201.3347084,0.0001906,2]
[318851432,1710428959815,155.16136782,0.0001961,2]
[318851443,1710429032211,-269.32461921,0.00019626,2]
[318851444,1710429032221,-166.666666,0.00019627,2]
[318851445,1710429032229,-300.0,0.00019999,2]
[318851446,1710429032238,-525.68891005,0.0002,2]
[318851447,1710429032250,-682.8620763,0.0002,2]
[318851448,1710429032259,-239.04301717,0.0002,2]
[318851449,1710429032269,-607.81083038,0.0002,2]
[318851450,1710429032279,-2605.460763,0.0002,2]
[318851451,1710429032290,-374.95687234,0.00020047,2]
[318851452,1710429032300,-168.57052279,0.00020047,2]
[318851453,1710429032310,-166.666666,0.00020076,2]
[318851455,1710429032320,-767.28296182,0.00020076,2]
[318851457,1710429032330,-40722.63692391,0.00020146,2]
[318851459,1710429032340,-5000.0,0.00020147,5]
[318851461,1710429032350,-374.95687233,0.0002021,2]
[318851462,1710429032360,-153.0,0.000203,2]
[318851464,1710429032370,-374.95687233,0.00020373,2]
[318851466,1710429032380,-166.666666,0.00020524,2]
[318851468,1710429032390,-374.95687233,0.00020535,2]
[318851469,1710429032400,-29639.24833083,0.00020536,2]
[318851470,1710429032412,-14173.9925769,0.00020536,2]
[318851525,1710429038267,-155.16136782,0.00019625,2]
[318851527,1710429038277,-6433.43103818,0.00020536,2]
[318851529,1710429038287,-500.0,0.00020622,2]
[318851531,1710429038299,-503.05479417,0.00020622,2]
[318851533,1710429038311,-500.0,0.00020622,2]
[318851535,1710429038322,-500.44741726,0.00020622,2]
[318851537,1710429038334,-500.0,0.00020622,2]
[318851539,1710429038345,-500.78787741,0.00020622,2]
[318851542,1710429038358,-374.95687233,0.00020698,2]
[318851545,1710429038369,-323.54544016,0.0002077,2]
[318851549,1710429038380,-168.73127535,0.0002077,2]
[318851551,1710429038389,-163.32544229,0.0002077,2]
[318851554,1710429038400,-208.43582616,0.0002077,2]
[318851556,1710429038409,-3145.91502391,0.00020771,2]
[318851558,1710429038420,-454.19517279,0.00020771,2]
[318851560,1710429038430,-524.29941204,0.00020771,2]
[318851562,1710429038441,-624.13231565,0.00020771,2]
[318851565,1710429038452,-2114.49634581,0.00020771,2]
[318851567,1710429038464,-616.25212117,0.00020771,2]
[318851569,1710429038474,-2583.58573682,0.00020771,2]
[318851571,1710429038485,-399.3111724,0.00020795,2]
[318851573,1710429038496,-322.1031252,0.00020795,2]
[318851575,1710429038506,-644.67484635,0.00020795,2]
[318851577,1710429038517,-747.38145056,0.00020796,2]
[318851579,1710429038528,-500.0,0.00020797,2]
[318851581,1710429038539,-59534.52237579,0.00020798,60]
[318851584,1710429038553,-546.69364615,0.00020798,60]
[318851586,1710429038567,-6843.89885918,0.00020798,60]
[318851589,1710429038581,-923.45367939,0.00020798,60]
[318851735,1710429040331,-339.92,0.00020798,60]
[318851736,1710429040344,-875.0,0.00020798,60]
[318851737,1710429040450,-668.61406582,0.00020798,60]
[318851738,1710429040462,-1561.5,0.00020798,60]
[318851801,1710429043397,-11107.29530672,0.00020798,60]
[318851803,1710429043411,-30794.64023603,0.00020798,60]
[318851804,1710429043425,-5939.0204132,0.00020798,60]
[318851805,1710429043441,-14662.15091453,0.00020798,60]
[318851814,1710429070013,176.212538,0.00019461,2]
[318851815,1710429164323,200.0,0.0001961,2]
[318851816,1710429350900,1790.6906795,0.00019519,2]
[318851817,1710429381200,19027.6304326,0.0001961,2]
[318851818,1710429540674,176.212538,0.00019206,2]
[318851819,1710429548434,2000.0,0.00019585,2]
[318851820,1710429552912,155.15826143,0.00019584,2]
[318851821,1710429608960,923.57547267,0.00019188,2]
[318851822,1710429671143,157.684887,0.00019317,2]
[318851823,1710429701185,1191.5024725,0.00019549,2]
[318851824,1710429734095,11246.25144161,0.00019549,2]
[318851825,1710429940795,24900.0,0.00019495,2]
[318851836,1710430013381,176.212538,0.00019257,2]
[318851843,1710430153262,2000.0,0.00019594,2]
[318851884,1710430232695,-381.78579349,0.0001964,2]
[318851885,1710430232704,-160.057085,0.00019641,2]
[318851888,1710430232714,-526.05513003,0.0002,2]
[318851894,1710430232774,-2079.40563297,0.0002,2]
[318851896,1710430232783,-239.04301717,0.0002,2]
[318851898,1710430232793,-682.8620763,0.00020115,2]
[318851900,1710430232803,-223.0,0.00020115,2]
[318851903,1710430232812,-7949.85812778,0.00020116,2]
[318851906,1710430232822,-607.81083038,0.00020117,2]
[318851908,1710430232831,-500.0,0.00020145,2]
[318851910,1710430232841,-500.0,0.00020535,2]
[318851912,1710430232851,-500.0,0.00020623,2]
[318851914,1710430232860,-500.0,0.00020623,2]
[318851916,1710430232873,-500.0,0.00020623,2]
[318851918,1710430232883,-500.0,0.00020623,2]
[318851920,1710430232893,-500.0,0.00020637,2]
[318851922,1710430232903,-500.0,0.00020669,2]
[318851924,1710430232913,-500.0,0.00020669,2]
[318851926,1710430232922,-500.0,0.00020669,2]
[318851928,1710430232932,-500.0,0.00020669,2]
[318851930,1710430232941,-415.5203154,0.00020669,2]
[318852129,1710430238655,-247.5685636,0.00020796,2]
[318852131,1710430238666,-293.30967988,0.00020796,2]
[318852133,1710430238676,-217.17624447,0.00020796,2]
[318852135,1710430238685,-2337.67703126,0.00020796,2]
[318852137,1710430238695,-294.77831715,0.00020796,2]
[318852139,1710430238705,-208.43582616,0.00020796,2]
[318852141,1710430238715,-216.08633985,0.00020796,2]
[318852143,1710430238727,-122.56366015,0.00020796,2]
[318852145,1710430238737,-310.22648797,0.00020796,2]
[318852147,1710430238746,-162.11816978,0.00020796,2]
[318852149,1710430238756,-500.0,0.00020797,2]
[318852152,1710430238766,-500.0,0.00020797,2]
[318852154,1710430238776,-500.0,0.00020797,2]
[318852156,1710430238785,-500.0,0.00020797,2]
[318852158,1710430238795,-464.13063294,0.00020797,2]
[318852160,1710430238805,-256.06844297,0.00020797,2]
[318852162,1710430238814,-500.0,0.00020797,2]
[318852164,1710430238823,-500.0,0.00020797,2]
[318852166,1710430238833,-500.0,0.00020797,2]
[318852168,1710430238842,-500.0,0.00020797,2]
[318852170,1710430238852,-500.0,0.00020797,2]
[318852172,1710430238861,-500.0,0.00020797,2]
[318852174,1710430238871,-500.0,0.00020797,2]
[318852176,1710430238884,-524.27088677,0.00020797,2]
[318852178,1710430238893,-500.42789894,0.00020797,2]
[318852180,1710430238903,-500.0,0.00020797,2]
[318852182,1710430238912,-500.0,0.00020797,2]
[318852184,1710430238922,-500.0,0.00020797,2]
[318852185,1710430238931,-500.0,0.00020797,2]
[318852187,1710430238940,-500.0,0.00020797,2]
[318852189,1710430238949,-635.83211871,0.00020797,2]
[318852192,1710430238959,-500.0,0.00020797,2]
[318852194,1710430238968,-500.0,0.00020797,2]
[318852196,1710430238977,-503.05884707,0.00020797,2]
[318852197,1710430238987,-500.0,0.00020797,2]
[318852200,1710430238997,-500.0,0.00020797,2]
[318852202,1710430239007,-500.0,0.00020797,2]
[318852204,1710430239016,-500.0,0.00020797,2]
[318852206,1710430239025,-500.0,0.00020797,2]
[318852208,1710430239035,-558.30543739,0.00020797,2]
[318852209,1710430239044,-500.0,0.00020797,2]
[318852211,1710430239053,-500.0,0.00020797,2]
[318852213,1710430239063,-731.75,0.00020797,2]
[318852216,1710430239073,-731.75,0.00020797,2]
[318852218,1710430239082,-731.75,0.00020797,2]
[318852220,1710430239092,-731.75,0.00020797,2]
[318852221,1710430239101,-731.75,0.00020797,2]
[318852223,1710430239111,-731.75,0.00020797,2]
[318852226,1710430239121,-731.75,0.00020797,2]
[318852227,1710430239134,-731.75,0.00020797,2]
[318852229,1710430239144,-731.75,0.00020797,2]
[318852231,1710430239154,-731.75,0.00020797,2]
[318852234,1710430239164,-731.75,0.00020797,2]
[318852236,1710430239177,-731.75,0.00020797,2]
[318852238,1710430239186,-731.75,0.00020797,2]
[318852240,1710430239199,-731.75,0.00020797,2]
[318852242,1710430239209,-731.75,0.00020797,2]
[318852243,1710430239219,-731.75,0.00020797,2]
[318852245,1710430239228,-731.75,0.00020797,2]
[318852248,1710430239238,-731.75,0.00020797,2]
[318852250,1710430239248,-731.75,0.00020797,2]
[318852252,1710430239258,-731.75,0.00020797,2]
[318852253,1710430239267,-731.75,0.00020797,2]
[318852255,1710430239278,-731.75,0.00020797,2]
[318852258,1710430239288,-731.75,0.00020797,2]
[318852260,1710430239298,-731.80641807,0.00020797,2]
[318852261,1710430239307,-169.42034312,0.00020797,2]
[318852264,1710430239317,-805.51,0.00020797,2]
[318852265,1710430239326,-805.51,0.00020797,2]
[318852267,1710430239336,-805.51,0.00020797,2]
[318852270,1710430239345,-805.51,0.00020797,2]
[318852272,1710430239355,-805.51,0.00020797,2]
[318852274,1710430239365,-805.51,0.00020797,2]
[318852276,1710430239377,-805.51,0.00020797,2]
[318852278,1710430239387,-805.51,0.00020797,2]
[318852280,1710430239397,-805.51,0.00020797,2]
[318852282,1710430239406,-805.51,0.00020797,2]
[318852284,1710430239415,-805.51,0.00020797,2]
[318852286,1710430239424,-805.51,0.00020797,2]
[318852288,1710430239433,-805.51,0.00020797,2]
[318852290,1710430239443,-805.51,0.00020797,2]
[318852291,1710430239452,-805.51,0.00020797,2]
[318852293,1710430239462,-805.51,0.00020797,2]
[318852295,1710430239471,-805.51,0.00020797,2]
[318852297,1710430239481,-805.51,0.00020797,2]
[318852299,1710430239491,-805.51,0.00020797,2]
[318852302,1710430239500,-805.51,0.00020797,2]
[318852303,1710430239513,-805.51,0.00020797,2]
[318852305,1710430239522,-805.51,0.00020797,2]
[318852307,1710430239532,-805.51,0.00020797,2]
[318852309,1710430239541,-805.56489669,0.00020797,2]
[318852311,1710430239550,-500.0,0.00020797,2]
[318852314,1710430239559,-500.0,0.00020797,2]
[318852315,1710430239569,-500.0,0.00020797,2]
[318852317,1710430239578,-500.0,0.00020797,2]
[318852319,1710430239587,-344.26340659,0.00020797,2]
[318852322,1710430239596,-500.0,0.00020797,2]
[318852324,1710430239606,-500.0,0.00020797,2]
[318852326,1710430239615,-500.0,0.00020797,2]
[318852328,1710430239626,-201.0608458,0.000208,2]
[318852330,1710430239635,-209.16101878,0.00020825,2]
[318852332,1710430239644,-8000.0,0.00020825,2]
[318852334,1710430239654,-500.0,0.00020826,2]
[318852336,1710430239663,-500.0,0.00020826,2]
[318852338,1710430239671,-500.0,0.00020826,2]
[318852340,1710430239681,-500.0,0.00020826,2]
[318852342,1710430239690,-500.0,0.00020826,2]
[318852344,1710430239699,-500.0,0.00020826,2]
[318852346,1710430239708,-500.0,0.00020826,2]
[318852348,1710430239717,-500.0,0.00020826,2]
[318852350,1710430239727,-500.0,0.00020826,2]
[318852352,1710430239736,-500.6356974,0.00020826,2]
[318852354,1710430239745,-500.0,0.00020826,2]
[318852356,1710430239754,-500.0,0.00020826,2]
[318852357,1710430239763,-625.68370952,0.00020826,2]
[318852360,1710430239772,-201.87855779,0.00020826,2]
[318852361,1710430239781,-500.0,0.00020826,2]
[318852363,1710430239791,-565.33071785,0.00020826,2]
[318852365,1710430239800,-500.0,0.00020826,2]
[318852368,1710430239810,-500.0,0.00020826,2]
[318852369,1710430239819,-500.0,0.00020826,2]
[318852372,1710430239829,-451.47,0.00020826,2]
[318852374,1710430239838,-235.29778061,0.00020826,2]
[318852376,1710430239847,-509.69179252,0.00020826,2]
[318852379,1710430239857,-500.0,0.00020826,2]
[318852381,1710430239866,-500.0,0.00020826,2]
[318852383,1710430239877,-500.0,0.00020826,2]
[318852385,1710430239886,-500.0,0.00020826,2]
[318852395,1710430239976,-500.0,0.00020826,2]
[318852397,1710430239987,-500.0,0.00020826,2]
[318852399,1710430239997,-500.0,0.00020826,2]
[318852401,1710430240007,-500.0,0.00020826,2]
[318852404,1710430240017,-500.0,0.00020826,2]
[318852407,1710430240029,-500.0,0.00020826,2]
[318852410,1710430240040,-500.0,0.00020826,2]
[318852413,1710430240050,-337.20489119,0.00020826,2]
[318852416,1710430240060,-1738.87,0.00020826,2]
[318852419,1710430240070,-1738.87,0.00020826,2]
[318852422,1710430240080,-1738.87,0.00020826,2]
[318852425,1710430240090,-1738.87,0.00020826,2]
[318852428,1710430240100,-1738.87,0.00020826,2]
[318852431,1710430240110,-1738.87,0.00020826,2]
[318852434,1710430240123,-1738.87,0.00020826,2]
[318852437,1710430240137,-1738.87,0.00020826,2]
[318852440,1710430240147,-1738.87,0.00020826,2]
[318852443,1710430240157,-1738.87,0.00020826,2]
[318852444,1710430240166,-1738.87,0.00020826,2]
[318852446,1710430240176,-1738.87,0.00020826,2]
[318852448,1710430240186,-1738.87,0.00020826,2]
[318852450,1710430240198,-1738.87,0.00020826,2]
[318852452,1710430240209,-1738.87,0.00020826,2]
[318852454,1710430240219,-1738.87,0.00020826,2]
[318852456,1710430240230,-1738.87,0.00020826,2]
[318852458,1710430240241,-1738.87,0.00020826,2]
[318852460,1710430240252,-1738.87,0.00020826,2]
[318852463,1710430240262,-1738.87,0.00020826,2]
[318852464,1710430240274,-1738.87,0.00020826,2]
[318852467,1710430240285,-1738.87,0.00020826,2]
[318852469,1710430240295,-1738.87,0.00020826,2]
[318852470,1710430240306,-1738.88470976,0.00020826,2]
[318852471,1710430240316,-500.0,0.00020826,2]
[318852473,1710430240325,-500.0,0.00020826,2]
[318852475,1710430240335,-268.30970909,0.00020826,2]
[318852477,1710430240346,-500.0,0.00020826,2]
[318852479,1710430240355,-500.0,0.00020826,2]
[318852481,1710430240365,-501.44205641,0.00020826,2]
[318852483,1710430240375,-500.0,0.00020826,2]
[318852485,1710430240389,-500.0,0.00020826,2]
[318852487,1710430240399,-500.0,0.00020826,2]
[318852488,1710430240410,-500.0,0.00020826,2]
[318852490,1710430240419,-500.0,0.00020826,2]
[318852492,1710430240429,-500.0,0.00020826,2]
[318852494,1710430240443,-500.0,0.00020826,2]
[318852495,1710430240453,-500.0,0.00020826,2]
[318852496,1710430240463,-500.0,0.00020826,2]
[318852498,1710430240472,-400.0,0.00020866,2]
[318852499,1710430240482,-500.0,0.00020867,2]
[318852500,1710430240491,-500.0,0.00020867,2]
[318852501,1710430240501,-500.0,0.00020867,2]
[318852502,1710430240510,-500.0,0.00020867,2]
[318852503,1710430240520,-500.0,0.00020867,2]
[318852504,1710430240529,-500.0,0.00020867,2]
[318852505,1710430240538,-500.0,0.00020867,2]
[318852506,1710430240548,-500.0,0.00020867,2]
[318852507,1710430240557,-500.0,0.00020867,2]
[318852508,1710430240567,-500.0,0.00020867,2]
[318852510,1710430240576,-612.45376903,0.00020867,2]
[318852512,1710430240586,-155.15049598,0.00020867,2]
[318852513,1710430240596,-155.15515516,0.00020867,2]
[318852515,1710430240605,-500.0,0.00020868,2]
[318852517,1710430240615,-500.0,0.00020868,2]
[318852518,1710430240627,-500.0,0.00020868,2]
[318852519,1710430240639,-502.99881719,0.00020868,2]
[318852521,1710430240648,-501.86448108,0.00020868,2]
[318852523,1710430240658,-503.54469761,0.00020868,2]
[318852525,1710430240668,-500.0,0.00020868,2]
[318852527,1710430240677,-500.0,0.00020868,2]
[318852528,1710430240687,-232.61400139,0.00020868,2]
[318852530,1710430240696,-500.0,0.00020868,2]
[318852532,1710430240707,-500.0,0.00020868,2]
[318852534,1710430240717,-500.0,0.00020868,2]
[318852535,1710430240727,-500.0,0.00020868,2]
[318852537,1710430240736,-500.32372021,0.00020868,2]
[318852538,1710430240745,-500.0,0.00020868,2]
[318852539,1710430240755,-500.0,0.00020868,2]
[318852540,1710430240764,-529.44568589,0.00020868,2]
[318852541,1710430240774,-500.0,0.00020868,2]
[318852542,1710430240784,-500.0,0.00020868,2]
[318852543,1710430240794,-500.0,0.00020868,2]
[318852544,1710430240804,-500.0,0.00020868,2]
[318852545,1710430240813,-359.05,0.00020868,2]
[318852546,1710430240822,-208.932448,0.00020868,2]
[318852547,1710430240832,-208.932448,0.00020868,2]
[318852548,1710430240841,-208.932448,0.00020868,2]
[318852549,1710430240852,-208.932448,0.00020868,2]
[318852550,1710430240861,-208.932448,0.00020868,2]
[318852551,1710430240870,-208.932448,0.00020868,2]
[318852552,1710430240883,-208.932448,0.00020868,2]
[318852553,1710430240892,-208.932448,0.00020868,2]
[318852554,1710430240902,-208.932448,0.00020868,2]
[318852555,1710430240910,-208.932448,0.00020868,2]
[318852556,1710430240919,-208.932448,0.00020868,2]
[318852557,1710430240929,-208.932448,0.00020868,2]
[318852558,1710430240938,-208.932448,0.00020868,2]
[318852559,1710430240948,-208.932448,0.00020868,2]
[318852560,1710430240957,-208.932448,0.00020868,2]
[318852561,1710430240966,-208.932448,0.00020868,2]
[318852562,1710430240976,-208.932448,0.00020868,2]
[318852563,1710430240985,-208.932448,0.00020868,2]
[318852564,1710430240995,-208.932448,0.00020868,2]
[318852565,1710430241005,-208.93245,0.00020868,2]
[318852566,1710430241014,-500.0,0.00020868,2]
[318852567,1710430241023,-500.0,0.00020868,2]
[318852568,1710430241032,-500.0,0.00020868,2]
[318852569,1710430241042,-500.0,0.00020868,2]
[318852570,1710430241051,-500.0,0.00020868,2]
[318852571,1710430241060,-500.0,0.00020868,2]
[318852572,1710430241069,-500.0,0.00020868,2]
[318852573,1710430241079,-500.0,0.00020868,2]
[318852574,1710430241089,-410.95,0.00020868,2]
[318852575,1710430241098,-500.0,0.00020868,2]
[318852576,1710430241107,-500.0,0.00020868,2]
[318852577,1710430241116,-261.78407359,0.00020868,2]
[318852578,1710430241128,-500.0,0.00020868,2]
[318852579,1710430241142,-500.0,0.00020868,2]
[318852580,1710430241151,-500.0,0.00020868,2]
[318852581,1710430241163,-1081.28445721,0.00020886,2]
[318852582,1710430241172,-596.40893399,0.00020886,2]
[318852583,1710430241182,-377.74658669,0.00020887,2]
[318852584,1710430241193,-547355.4770296,0.00020888,60]
[318852588,1710430241302,-500.0,0.00020797,2]
[318852589,1710430241312,-500.0,0.00020797,2]
[318852591,1710430241322,-500.0,0.00020797,2]
[318852592,1710430241332,-500.0,0.00020797,2]
[318852594,1710430241341,-355.5785957,0.00020797,2]
[318852596,1710430241350,-59580.5008844,0.00020888,60]
[318852635,1710430243973,-239.04301717,0.00020886,2]
[318852636,1710430243983,-8804.85447412,0.00020888,60]
[318852637,1710430243995,-6733.59033832,0.00020888,60]
[318852639,1710430244007,-4962.05743904,0.00020888,60]
[318852640,1710430244024,-4332.30699984,0.00020888,60]
[318852641,1710430244037,-2004.50610423,0.00020888,60]
[318852643,1710430244049,-3073.87999998,0.00020888,60]
[318852648,1710430244117,-2069.10637075,0.00020888,60]
[318852649,1710430244133,-49429.89740221,0.00020888,60]
[318852650,1710430244161,-607.81083038,0.00020886,2]
[318852651,1710430244171,-29646.07104383,0.00020888,60]
[318852653,1710430245968,133757.036,0.00017248,7]
[318852681,1710430248609,-35474.961636,0.00020888,60]
[318852684,1710430248637,-7075.94204882,0.00020888,60]
[318852685,1710430248649,-450011.8625572,0.00020888,60]
[318852686,1710430248661,-498857.21913543,0.00020888,60]
[318852687,1710430248672,-3680.7502,0.00020888,60]
[318852688,1710430248684,-3449.05,0.00020888,60]
[318852689,1710430248699,-1426.35206833,0.00020888,60]